bitfinex-derivatives/quotes_BTCF0:USTF0_20250716
["timestamp","ask_amount","ask_price","bid_price","bid_amount"]
[1752661899500,1.10665846,119220.0,119210.0,0.25159]
[1752661899698,1.68697846,119220.0,119210.0,0.25159]
[1752661899897,1.74723208,119220.0,119210.0,0.25159]
[1752661900598,1.74723208,119220.0,119210.0,0.25359]
[1752661901698,1.75574064,119220.0,119210.0,0.2116576]
[1752661902200,1.75573835,119220.0,119210.0,0.2116576]
[1752661903099,1.75573835,119220.0,119210.0,0.1697364]
[1752661903397,1.75549835,119220.0,119210.0,0.1697364]
[1752661903993,1.75553835,119220.0,119210.0,0.1697364]
[1752661904900,1.75553835,119220.0,119210.0,0.002]
[1752661905498,1.69528702,119220.0,119210.0,0.002]
[1752661906198,2.19528702,119220.0,119210.0,0.002]
[1752661907302,0.1677365,119210.0,119200.0,0.2518156]
[1752661907504,1.64846937,119210.0,119200.0,0.2096784]
[1752661907703,0.1677509,119200.0,119190.0,0.612633]
[1752661907889,0.44374681,119200.0,119190.0,0.6568036]
[1752661908296,0.44354681,119200.0,119190.0,0.6568036]
[1752661908995,0.27599591,119200.0,119190.0,0.6613036]
[1752661909197,0.44374681,119200.0,119190.0,0.6613036]
[1752661909498,0.44374681,119200.0,119190.0,0.6653036]
[1752661910004,0.94374681,119200.0,119190.0,0.6653036]
[1752661911402,1.00959979,119200.0,119190.0,0.6653036]
[1752661911601,1.00963979,119200.0,119190.0,0.6653036]
[1752661911997,1.00963979,119200.0,119190.0,0.3045036]
[1752661912301,0.78167375,119200.0,119190.0,0.3045036]
[1752661916609,0.84191332,119200.0,119190.0,0.3045036]
[1752661917098,0.84191332,119200.0,119190.0,0.8851436]
[1752661917299,0.78167375,119200.0,119190.0,0.8851436]
[1752661918199,0.76308298,119200.0,119190.0,1.24767158]
[1752661918392,0.69024,119200.0,119190.0,1.60847158]
[1752661920400,0.69024,119200.0,119190.0,1.02783158]
[1752661920705,0.69024,119200.0,119190.0,1.61175158]
[1752661921605,0.69024,119200.0,119190.0,1.90945158]
[1752661925709,0.75047957,119200.0,119190.0,1.90945158]
[1752661925908,0.75047957,119200.0,119190.0,1.80139218]
[1752661926107,0.75047957,119200.0,119190.0,1.25941278]
[1752661926307,0.75047957,119200.0,119190.0,1.84253278]
[1752661926805,0.69024,119200.0,119190.0,1.25941278]
[1752661927300,0.69024,119200.0,119190.0,1.84221278]
[1752661929407,0.69024,119200.0,119190.0,1.48141278]
[1752661929613,0.75047957,119200.0,119190.0,1.84221278]
[1752661932412,0.75536957,119200.0,119190.0,1.84221278]
[1752661932613,0.75536957,119200.0,119190.0,1.84157278]
[1752661932812,0.75774957,119200.0,119190.0,1.84149278]
[1752661934113,0.69751,119200.0,119190.0,1.84149278]
[1752661934313,0.75774957,119200.0,119190.0,1.84149278]
[1752661935110,0.69751,119200.0,119190.0,1.84149278]
[1752661935612,0.69751,119200.0,119190.0,0.89861278]
[1752661935820,0.75774957,119200.0,119190.0,1.1178048]
[1752661936323,0.75774957,119200.0,119190.0,1.48033278]
[1752661936617,0.69751,119200.0,119190.0,1.18263278]
[1752661937314,0.69751,119200.0,119190.0,0.60091278]
[1752661937518,0.69751,119200.0,119190.0,0.8199048]
[1752661938512,1.06003798,119200.0,119190.0,0.8199048]
[1752661938712,1.06003798,119200.0,119190.0,0.2314548]
[1752661939021,1.66756901,119200.0,119190.0,0.7708342]
[1752661940617,1.60732944,119200.0,119190.0,0.7708342]
[1752661941318,1.66770557,119200.0,119190.0,0.7708342]
[1752661941619,1.60732944,119200.0,119190.0,0.7708342]
[1752661941820,1.68230287,119200.0,119190.0,0.7708342]
[1752661942820,1.57492151,119200.0,119190.0,0.7708342]
[1752661943121,1.1374201,119200.0,119190.0,0.7708342]
[1752661943323,1.49994808,119200.0,119190.0,0.7708342]
[1752661944020,1.66769848,119200.0,119190.0,0.7708342]
[1752661944516,1.49994808,119200.0,119190.0,0.7708342]
[1752661945019,1.49994808,119200.0,119190.0,0.7733142]
[1752661946720,1.1374201,119200.0,119190.0,0.7733142]
[1752661946914,1.49994808,119200.0,119190.0,0.7733142]
[1752661947218,1.43957904,119200.0,119190.0,0.7733142]
[1752661947420,1.51455247,119200.0,119190.0,0.7733142]
[1752661947622,1.66767741,119200.0,119190.0,0.7733142]
[1752661948413,1.60732944,119200.0,119190.0,0.7733142]
[1752661948615,1.60732944,119200.0,119190.0,0.7708342]
[1752661948919,1.60732944,119200.0,119190.0,0.1895142]
[1752661949120,1.60732944,119200.0,119190.0,0.7699542]
[1752661951022,1.43957904,119200.0,119190.0,0.7699542]
[1752661951222,1.43957904,119200.0,119190.0,0.7724342]
[1752661952222,0.71625106,119200.0,119190.0,1.50068218]
[1752661953414,0.70898106,119200.0,119190.0,1.50068218]
[1752661954223,0.71387106,119200.0,119190.0,1.50068218]
[1752661957524,0.71625106,119200.0,119190.0,1.50068218]
[1752661960328,0.77659903,119200.0,119190.0,1.50068218]
[1752661964323,0.77659903,119200.0,119190.0,1.1381542]
[1752661964523,0.77659903,119200.0,119190.0,1.50068218]
[1752661964727,0.71625106,119200.0,119190.0,0.92024218]
[1752661964934,0.71625106,119200.0,119190.0,1.49900218]
[1752661966129,0.79122449,119200.0,119190.0,1.49900218]
[1752661966846,0.71625106,119200.0,119190.0,1.49900218]
[1752661967738,0.77663306,119200.0,119190.0,1.49900218]
[1752661969643,0.77663306,119200.0,119190.0,1.13820218]
[1752661969840,0.77663306,119200.0,119190.0,0.92024218]
[1752661970042,0.71625106,119200.0,119190.0,1.49884218]
[1752661971145,0.77663306,119200.0,119190.0,1.49884218]
[1752661971644,0.71625106,119200.0,119190.0,1.49884218]
[1752661972049,0.71625106,119200.0,119190.0,1.13804218]
[1752661972251,0.71625106,119200.0,119190.0,1.49884218]
[1752661972849,0.77663306,119200.0,119190.0,1.49884218]
[1752661974349,0.77663306,119200.0,119190.0,1.1363142]
[1752661975156,0.71625106,119200.0,119190.0,1.1363142]
[1752661975852,0.71625106,119200.0,119190.0,0.7755142]
[1752661976058,0.71625106,119200.0,119190.0,1.1363142]
[1752661977656,0.71625106,119200.0,119190.0,0.5527942]
[1752661977657,1.07877904,119200.0,119190.0,0.5527942]
[1752661977862,1.61032944,119200.0,119190.0,0.1895142]
[1752661978058,1.61032944,119200.0,119190.0,0.7674742]
[1752661979559,1.6707278,119200.0,119190.0,0.7674742]
[1752661983560,1.5029774,119200.0,119190.0,0.7674742]
[1752661984158,1.6707278,119200.0,119190.0,0.7674742]
[1752661985763,1.61032944,119200.0,119190.0,0.7674742]
[1752661986160,1.61032944,119200.0,119190.0,0.7669142]
[1752661986161,1.6707188,119200.0,119190.0,0.7669142]
[1752661987464,1.6707188,119200.0,119190.0,0.7668342]
[1752661988768,1.6707188,119200.0,119190.0,0.7658342]
[1752661989669,1.61032944,119200.0,119190.0,0.7658342]
[1752661990066,1.67071116,119200.0,119190.0,0.1885142]
[1752661990264,1.67071116,119200.0,119190.0,0.7656342]
[1752661991666,2.24779116,119200.0,119190.0,0.7656342]
[1752661992073,2.18740944,119200.0,119190.0,0.7656342]
[1752661992373,1.82660944,119200.0,119190.0,0.7656342]
[1752661992573,2.18740944,119200.0,119190.0,0.7656342]
[1752661993974,2.24778686,119200.0,119190.0,0.7656342]
[1752661995172,2.24778661,119200.0,119190.0,0.7656342]
[1752661996971,1.7918132,119200.0,119190.0,0.1465736]
[1752661997179,2.44342663,119200.0,119190.0,0.1465736]
[1752661997377,2.3684532,119200.0,119190.0,0.1465736]
[1752661997577,2.47342356,119200.0,119190.0,0.1465736]
[1752661999180,2.29206579,119200.0,119190.0,0.1465736]
[1752662000576,2.18709543,119200.0,119190.0,0.1465736]
[1752662003580,1.82444146,119200.0,119190.0,0.1465736]
[1752662003878,2.18709543,119200.0,119190.0,0.1465736]
[1752662004476,2.29206579,119200.0,119190.0,0.1465736]
[1752662005180,2.18709543,119200.0,119190.0,0.1465736]
[1752662005480,2.54789543,119200.0,119190.0,0.1465736]
[1752662005780,2.55789543,119200.0,119190.0,0.1465736]
[1752662006477,2.55789543,119200.0,119190.0,0.2010011]
[1752662007180,2.6635009,119200.0,119190.0,0.2010011]
[1752662008881,2.7389314,119200.0,119190.0,0.2010011]
[1752662009178,2.63332593,119200.0,119190.0,0.2010011]
[1752662009881,2.63332593,119200.0,119190.0,0.1717509]
[1752662010083,2.6333248,119200.0,119190.0,0.1717509]
[1752662011584,2.27067083,119200.0,119190.0,0.1717509]
[1752662011881,1.69403083,119200.0,119190.0,0.1717509]
[1752662012583,1.69403083,119200.0,119190.0,0.1740909]
[1752662012880,1.61860146,119200.0,119190.0,0.1740909]
[1752662013082,1.61860146,119200.0,119190.0,0.1717509]
[1752662013286,1.98125543,119200.0,119190.0,0.1717509]
[1752662015888,1.98125543,119200.0,119190.0,0.1717638]
[1752662017789,2.0566848,119200.0,119190.0,0.1717638]
[1752662020385,0.1748838,119190.0,119180.0,0.1679714]
[1752662020583,1.74459832,119190.0,119180.0,0.1677714]
[1752662020989,1.92604103,119190.0,119180.0,0.1677714]
[1752662021885,1.92704103,119190.0,119180.0,0.1677714]
[1752662022590,2.42704103,119190.0,119180.0,0.1677714]
[1752662022986,2.24566984,119190.0,119180.0,0.1677714]
[1752662023484,0.1748973,119180.0,119170.0,0.0002]
[1752662023690,1.29335391,119180.0,119170.0,0.1677914]
[1752662023990,1.33530121,119180.0,119170.0,0.1677914]
[1752662024291,0.1677918,119170.0,119160.0,0.25203296]
[1752662024493,1.66895729,119170.0,119160.0,0.25183296]
[1752662025187,1.7293249,119170.0,119160.0,0.25183296]
[1752662025386,1.7293249,119170.0,119160.0,0.16794376]
[1752662025892,1.7303249,119170.0,119160.0,0.16794376]
[1752662026793,1.67816316,119170.0,119160.0,0.16794376]
[1752662026992,1.67816316,119170.0,119160.0,0.00013806]
[1752662027491,0.2097876,119150.0,119130.0,0.00491]
[1752662027793,0.2097876,119150.0,119130.0,0.1750376]
[1752662027794,0.8965535,119140.0,119130.0,0.1750376]
[1752662027992,1.0765535,119140.0,119130.0,0.1750376]
[1752662028188,1.43927899,119140.0,119130.0,0.1750376]
[1752662028391,1.43927899,119140.0,119130.0,0.1701276]
[1752662029387,1.93927899,119140.0,119130.0,0.171128]
[1752662029893,1.93927899,119140.0,119130.0,0.001]
[1752662030489,2.51951899,119140.0,119130.0,0.001]
[1752662030894,0.1678617,119120.0,119110.0,0.251801]
[1752662031092,1.85160549,119120.0,119110.0,0.258991]
[1752662031292,2.01946719,119120.0,119110.0,0.258991]
[1752662032194,1.85160549,119120.0,119110.0,0.258991]
[1752662032388,2.01946699,119120.0,119110.0,0.258991]
[1752662032597,2.51946699,119120.0,119110.0,0.258991]
[1752662033093,2.35160549,119120.0,119110.0,0.258991]
[1752662033297,2.51946679,119120.0,119110.0,0.258991]
[1752662033994,2.35160549,119120.0,119110.0,0.258991]
[1752662034701,1.77964616,119120.0,119110.0,0.258991]
[1752662034998,2.35952616,119120.0,119110.0,0.258991]
[1752662035703,2.35952616,119120.0,119110.0,0.260991]
[1752662036198,2.52738796,119120.0,119110.0,0.260991]
[1752662036387,2.52738796,119120.0,119110.0,0.256081]
[1752662036996,1.77964616,119120.0,119110.0,0.256081]
[1752662037200,2.35928616,119120.0,119110.0,0.260991]
[1752662037498,1.77964616,119120.0,119110.0,0.260991]
[1752662037702,2.35924616,119120.0,119110.0,0.260991]
[1752662038700,2.52710806,119120.0,119110.0,0.002]
[1752662038901,2.88983355,119120.0,119110.0,0.1698758]
[1752662039299,2.52710806,119120.0,119110.0,0.1698758]
[1752662039497,2.52710806,119120.0,119110.0,0.002]
[1752662040207,2.88983355,119120.0,119110.0,0.002]
[1752662041304,0.1702462,119110.0,119100.0,0.2518209]
[1752662041500,1.08852169,119110.0,119100.0,0.2518209]
[1752662042202,0.00712,119090.0,119080.0,0.20193783]
[1752662042407,0.56792,119090.0,119080.0,0.36985633]
[1752662044309,0.5608,119090.0,119080.0,0.37285633]
[1752662044795,1.0608,119090.0,119080.0,0.73558182]
[1752662045000,1.06555,119090.0,119080.0,0.73558182]
[1752662045207,1.0608,119090.0,119080.0,0.73558182]
[1752662045618,1.06555,119090.0,119080.0,0.73558182]
[1752662047110,1.42635,119090.0,119080.0,0.37285633]
[1752662047311,1.42635,119090.0,119080.0,0.33087683]
[1752662047312,1.78907549,119090.0,119080.0,0.33087683]
[1752662048306,1.78907549,119090.0,119080.0,0.2571561]
[1752662052521,1.95697969,119090.0,119080.0,0.1709183]
[1752662052816,2.53597969,119090.0,119080.0,0.1709183]
[1752662057616,2.5963473,119090.0,119080.0,0.1709183]
[1752662057816,2.53597969,119090.0,119080.0,0.1709183]
[1752662058732,2.1732542,119090.0,119080.0,0.1709183]
[1752662059024,2.53597969,119090.0,119080.0,0.1709183]
[1752662059919,2.5963473,119090.0,119080.0,0.1709183]
[1752662060120,0.1703683,119080.0,119070.0,0.084165]
[1752662060322,0.1751125,119070.0,119060.0,0.2521025]
[1752662060625,1.73870535,119070.0,119060.0,0.2519025]
[1752662061024,1.51098549,119070.0,119060.0,0.2519025]
[1752662061526,1.51098549,119070.0,119060.0,0.2539025]
[1752662061824,1.816192,119070.0,119060.0,0.2539025]
[1752662062022,2.01098549,119070.0,119060.0,0.2539025]
[1752662062425,2.17891749,119070.0,119060.0,0.2539025]
[1752662062828,2.01098549,119070.0,119060.0,0.2539025]
[1752662063133,1.0608,119070.0,119060.0,0.62384799]
[1752662064226,1.0608,119070.0,119060.0,1.20404799]
[1752662067329,1.12098736,119070.0,119060.0,1.20404799]
[1752662068823,1.0608,119070.0,119060.0,1.20404799]
[1752662069528,1.0608,119070.0,119060.0,1.37202399]
[1752662071932,0.5608,119070.0,119060.0,1.37202399]
[1752662073224,0.5608,119070.0,119060.0,1.66972399]
[1752662073426,0.5408,119090.0,119080.0,0.1751379]
[1752662073631,0.5208,119090.0,119080.0,1.13262339]
[1752662073827,0.5208,119090.0,119080.0,1.30056739]
[1752662075234,1.0208,119090.0,119080.0,1.30056739]
[1752662076836,1.38850549,119090.0,119080.0,0.7698979]
[1752662077232,1.02578,119090.0,119080.0,0.7698979]
[1752662077628,2.21207635,119090.0,119080.0,0.1703776]
[1752662077837,2.15188899,119090.0,119080.0,0.1679176]
[1752662078036,2.21215912,119090.0,119080.0,0.1679176]
[1752662078736,2.04425562,119090.0,119080.0,0.1679176]
[1752662079133,2.21215912,119090.0,119080.0,0.1679176]
[1752662081436,0.1703883,119080.0,119070.0,0.7690002]
[1752662081637,1.08889379,119080.0,119070.0,0.59592]
[1752662081937,1.18616402,119080.0,119060.0,0.8950408]
[1752662082237,0.73097549,119070.0,119060.0,0.8973208]
[1752662082439,0.94097549,119070.0,119060.0,0.8971208]
[1752662082642,0.57825,119070.0,119060.0,0.8971208]
[1752662083840,0.59684878,119070.0,119060.0,0.8551349]
[1752662084444,0.76478078,119070.0,119060.0,0.8551349]
[1752662084841,0.76478078,119070.0,119060.0,0.8561349]
[1752662084842,1.12750627,119070.0,119060.0,0.8561349]
[1752662085047,1.1877764,119070.0,119060.0,0.8141497]
[1752662085238,1.12750627,119070.0,119060.0,0.8141497]
[1752662085545,1.1677764,119070.0,119060.0,0.8141497]
[1752662086135,1.1677764,119070.0,119060.0,0.8069197]
[1752662086543,0.80505091,119070.0,119060.0,0.2131997]
[1752662086744,0.80505091,119070.0,119060.0,0.2181497]
[1752662086946,1.1677764,119070.0,119060.0,0.2181497]
[1752662087147,1.7636164,119070.0,119060.0,0.2181497]
[1752662087338,2.2636164,119070.0,119060.0,0.2181497]
[1752662087845,2.2636164,119070.0,119060.0,0.001]
[1752662088036,2.2636164,119070.0,119060.0,0.168946]
[1752662088833,2.20334627,119070.0,119060.0,0.168946]
[1752662090146,2.20346627,119070.0,119060.0,0.176176]
[1752662090542,1.07684878,119070.0,119060.0,0.176176]
[1752662090747,1.67280878,119070.0,119060.0,0.176176]
[1752662091249,1.84074128,119070.0,119060.0,0.171226]
[1752662091452,2.20346677,119070.0,119060.0,0.171226]
[1752662092146,2.20346677,119070.0,119060.0,0.176176]
[1752662092448,1.05825,119070.0,119060.0,0.53890149]
[1752662092952,1.05327,119070.0,119060.0,0.53890149]
[1752662093347,1.05327,119070.0,119060.0,0.176176]
[1752662093348,1.05825,119070.0,119060.0,0.176176]
[1752662093548,1.05825,119070.0,119060.0,0.53890149]
[1752662096358,1.05825,119070.0,119060.0,0.176176]
[1752662096554,1.05825,119070.0,119060.0,0.53890149]
[1752662097457,1.05327,119070.0,119060.0,0.53890149]
[1752662098358,1.05825,119070.0,119060.0,0.53890149]
[1752662101258,1.05825,119070.0,119060.0,0.176176]
[1752662101461,1.05825,119070.0,119060.0,0.53890149]
[1752662103662,1.05825,119070.0,119060.0,1.13606149]
[1752662103968,1.05825,119070.0,119060.0,0.773336]
[1752662104358,1.05825,119070.0,119060.0,0.176176]
[1752662104557,1.05825,119070.0,119060.0,0.773296]
[1752662106563,1.05825,119070.0,119060.0,1.13602149]
[1752662107261,1.05825,119070.0,119060.0,1.13598149]
[1752662107868,1.42097549,119070.0,119060.0,0.773256]
[1752662108559,1.05825,119070.0,119060.0,0.773256]
[1752662110670,1.05825,119070.0,119060.0,1.13598149]
[1752662111370,1.05825,119070.0,119060.0,0.773256]
[1752662111569,1.05825,119070.0,119060.0,1.13598149]
[1752662111867,1.05825,119070.0,119060.0,0.773256]
[1752662112065,1.05825,119070.0,119060.0,1.13598149]
[1752662114164,1.0508,119070.0,119060.0,1.30395749]
[1752662114469,0.69,119070.0,119060.0,1.30395749]
[1752662114669,0.19,119070.0,119060.0,1.30395749]
[1752662117465,0.55801,119070.0,119060.0,1.13474149]
[1752662117968,1.05801,119070.0,119060.0,1.13474149]
[1752662118859,1.05801,119070.0,119060.0,1.13458149]
[1752662119063,1.05801,119070.0,119060.0,0.53890149]
[1752662119263,1.05801,119070.0,119060.0,1.13446149]
[1752662127170,1.05801,119070.0,119060.0,0.771736]
[1752662127375,1.05801,119070.0,119060.0,1.13446149]
[1752662134187,1.05801,119070.0,119060.0,0.53890149]
[1752662134479,1.05801,119070.0,119060.0,1.13178149]
[1752662134680,1.05801,119070.0,119060.0,0.769056]
[1752662134879,1.05801,119070.0,119060.0,1.13178149]
[1752662142282,1.05801,119070.0,119060.0,1.13066149]
[1752662143387,0.69721,119070.0,119060.0,1.13066149]
[1752662143583,1.05801,119070.0,119060.0,0.767936]
[1752662144780,1.05801,119070.0,119060.0,1.13066149]
[1752662145780,1.05801,119070.0,119060.0,0.96171549]
[1752662145980,1.05801,119070.0,119060.0,1.12966149]
[1752662146479,1.05801,119070.0,119060.0,0.759706]
[1752662146986,1.05801,119070.0,119060.0,0.761956]
[1752662147188,1.05801,119070.0,119060.0,0.766586]
[1752662154489,1.07427171,119070.0,119060.0,1.12931149]
[1752662159299,1.07427171,119070.0,119060.0,0.53755149]
[1752662159594,1.07427171,119070.0,119060.0,1.12639149]
[1752662167915,1.07427171,119070.0,119060.0,0.763666]
[1752662168108,1.07427171,119070.0,119060.0,1.12639149]
[1752662172416,0.71347171,119070.0,119060.0,1.12639149]
[1752662172715,1.07427171,119070.0,119060.0,1.12639149]
[1752662172918,1.34673265,119070.0,119060.0,1.03612694]
[1752662173416,0.98593265,119070.0,119060.0,1.03612694]
[1752662173716,1.34673265,119070.0,119060.0,1.30858788]
[1752662174416,1.34673265,119070.0,119060.0,1.03612694]
[1752662175720,1.07427171,119070.0,119060.0,1.03612694]
[1752662175911,1.34673265,119070.0,119060.0,1.03612694]
[1752662176619,1.07427171,119070.0,119060.0,1.03612694]
[1752662176910,1.34673265,119070.0,119060.0,1.03612694]
[1752662177306,1.40700278,119070.0,119060.0,1.03612694]
[1752662179419,1.40700278,119070.0,119060.0,0.763666]
[1752662179718,1.40700278,119070.0,119060.0,1.03612694]
[1752662179919,1.40700278,119070.0,119060.0,0.753786]
[1752662180116,1.07427171,119070.0,119060.0,1.02624694]
[1752662180317,1.34673265,119070.0,119060.0,0.753786]
[1752662180622,1.34673265,119070.0,119060.0,1.03100694]
[1752662182020,0.98593265,119070.0,119060.0,1.03100694]
[1752662182221,1.40712571,119070.0,119060.0,1.03100694]
[1752662186120,1.40735367,119070.0,119060.0,1.03100694]
[1752662187324,1.34696061,119070.0,119060.0,1.03100694]
[1752662190127,1.34696061,119070.0,119060.0,1.30346788]
[1752662190621,1.34696061,119070.0,119060.0,1.03100694]
[1752662191127,1.34696061,119070.0,119060.0,1.03184694]
[1752662192824,0.98616061,119070.0,119060.0,1.03184694]
[1752662193126,1.34696061,119070.0,119060.0,1.03184694]
[1752662193523,1.40735367,119070.0,119060.0,1.03184694]
[1752662194229,1.40739367,119070.0,119060.0,1.03184694]
[1752662195728,1.04659367,119070.0,119060.0,1.03184694]
[1752662195929,1.40739367,119070.0,119060.0,1.03184694]
[1752662197226,1.34700061,119070.0,119060.0,1.03184694]
[1752662198226,1.07453967,119070.0,119060.0,1.03184694]
[1752662198421,1.34700061,119070.0,119060.0,1.30430788]
[1752662199225,1.34700061,119070.0,119060.0,1.03184694]
[1752662202727,0.98620061,119070.0,119060.0,1.03184694]
[1752662202936,1.34700061,119070.0,119060.0,1.03184694]
[1752662203126,1.34700061,119070.0,119060.0,0.759386]
[1752662203328,1.34700061,119070.0,119060.0,1.03184694]
[1752662207638,1.34700061,119070.0,119060.0,0.759386]
[1752662207836,1.34700061,119070.0,119060.0,1.03184694]
[1752662213742,0.98620061,119070.0,119060.0,1.03184694]
[1752662214040,1.34700061,119070.0,119060.0,1.03184694]
[1752662215239,1.40739367,119070.0,119060.0,1.03184694]
[1752662216444,1.34700061,119070.0,119060.0,1.03184694]
[1752662216747,0.98620061,119070.0,119060.0,1.03184694]
[1752662216946,1.34700061,119070.0,119060.0,1.03184694]
[1752662217347,1.40739367,119070.0,119060.0,1.03184694]
[1752662217942,1.13493273,119070.0,119060.0,1.30430788]
[1752662218152,1.13011273,119070.0,119060.0,1.30430788]
[1752662221653,1.06971967,119070.0,119060.0,1.30430788]
[1752662221853,1.07424967,119070.0,119060.0,1.30430788]
[1752662222753,1.07424967,119070.0,119060.0,0.759386]
[1752662222955,1.07424967,119070.0,119060.0,1.30430788]
[1752662226245,1.13461005,119070.0,119060.0,1.30430788]
[1752662229956,1.13461005,119070.0,119060.0,0.759386]
[1752662230155,1.13461005,119070.0,119060.0,1.30430788]
[1752662230364,1.13461005,119070.0,119060.0,0.759386]
[1752662230560,1.13461005,119070.0,119060.0,1.30430788]
[1752662230763,1.40707099,119070.0,119060.0,1.30430788]
[1752662231357,0.50905779,119060.0,119050.0,0.0002]
[1752662231559,0.50905779,119060.0,119040.0,0.0002]
[1752662231560,0.1702116,119050.0,119040.0,0.0002]
[1752662231762,1.57619221,119050.0,119040.0,0.1679757]
[1752662231954,1.30373127,119050.0,119040.0,0.1679757]
[1752662232255,0.55420967,119050.0,119040.0,0.44043664]
[1752662232461,0.61457005,119050.0,119040.0,0.44720664]
[1752662232758,1.40823061,119050.0,119040.0,0.44720664]
[1752662233353,1.40823061,119050.0,119040.0,0.1747457]
[1752662233558,1.40823061,119050.0,119040.0,0.44720664]
[1752662233860,1.57619221,119050.0,119040.0,0.44720664]
[1752662234157,0.1679757,119040.0,119030.0,0.0002]
[1752662234460,0.00692,119030.0,119020.0,0.2101955]
[1752662234657,0.83667061,119030.0,119020.0,0.7915955]
[1752662235058,0.83667061,119030.0,119020.0,0.7961055]
[1752662235256,1.00466041,119030.0,119020.0,0.7961055]
[1752662235760,1.00466041,119030.0,119020.0,0.86460381]
[1752662235957,1.00466041,119030.0,119020.0,1.13706475]
[1752662236159,1.00466041,119030.0,119020.0,0.86460381]
[1752662236459,1.00466041,119030.0,119020.0,1.13706475]
[1752662236658,0.83667061,119030.0,119020.0,0.86460381]
[1752662236854,0.83667061,119030.0,119020.0,0.7971055]
[1752662237158,0.56420967,119030.0,119020.0,0.7993655]
[1752662237456,1.06420967,119030.0,119020.0,1.16294438]
[1752662238562,1.06420967,119030.0,119020.0,1.16298438]
[1752662241259,1.06420967,119030.0,119020.0,0.58134438]
[1752662241558,1.05728967,119030.0,119020.0,1.16302438]
[1752662241765,0.69648967,119030.0,119020.0,1.16302438]
[1752662241954,0.02648967,119030.0,119020.0,1.16302438]
[1752662244157,0.02648967,119030.0,119020.0,1.46072438]
[1752662245662,0.02648967,119030.0,119020.0,2.62236438]
[1752662245860,0.3808,119050.0,119040.0,0.00677]
[1752662246062,0.5608,119050.0,119040.0,1.48354376]
[1752662246767,0.5608,119050.0,119040.0,1.11996488]
[1752662247258,0.5628,119050.0,119040.0,1.11996488]
[1752662248362,0.5618,119050.0,119040.0,1.11996488]
[1752662248969,0.5618,119050.0,119040.0,0.756386]
[1752662249358,0.5618,119050.0,119040.0,1.11996488]
[1752662250070,0.56647,119050.0,119040.0,1.11996488]
[1752662250366,0.56872,119050.0,119040.0,1.11996488]
[1752662250561,0.56872,119050.0,119040.0,1.11992488]
[1752662253164,0.56872,119050.0,119040.0,0.756346]
[1752662253366,0.56872,119050.0,119040.0,1.11992488]
[1752662255972,0.56872,119050.0,119040.0,0.53832488]
[1752662256163,0.56872,119050.0,119040.0,1.11992488]
[1752662257873,0.58678781,119050.0,119040.0,1.11992488]
[1752662259374,0.58678781,119050.0,119040.0,0.53832488]
[1752662259568,0.58678781,119050.0,119040.0,1.11992488]
[1752662260072,0.58678781,119050.0,119040.0,0.53832488]
[1752662260266,0.58678781,119050.0,119040.0,1.11992488]
[1752662260774,0.58678781,119050.0,119040.0,0.756346]
[1752662260975,0.58678781,119050.0,119040.0,1.11992488]
[1752662261877,0.58678781,119050.0,119040.0,0.53832488]
[1752662262372,0.58678781,119050.0,119040.0,1.11988488]
[1752662264785,0.58211781,119050.0,119040.0,1.11988488]
[1752662265385,0.58672781,119050.0,119040.0,1.11988488]
[1752662267876,0.22592781,119050.0,119040.0,1.11988488]
[1752662268079,0.58672781,119050.0,119040.0,1.11988488]
[1752662269091,0.57986781,119050.0,119040.0,1.48346376]
[1752662269790,0.58225781,119050.0,119040.0,1.11988488]
[1752662269981,0.58686781,119050.0,119040.0,1.11988488]
[1752662272586,0.58686781,119050.0,119040.0,0.174746]
[1752662272786,0.58686781,119050.0,119040.0,1.11984488]
[1752662272982,0.58690781,119050.0,119040.0,1.11984488]
[1752662274785,0.22610781,119050.0,119040.0,1.11984488]
[1752662274988,0.58690781,119050.0,119040.0,1.11984488]
[1752662275385,0.64726819,119050.0,119040.0,1.11984488]
[1752662275788,0.58690781,119050.0,119040.0,1.11984488]
[1752662275985,0.22610781,119050.0,119040.0,1.11984488]
[1752662276179,0.58690781,119050.0,119040.0,1.11984488]
[1752662276787,0.58690781,119050.0,119040.0,0.53832488]
[1752662276992,0.94770781,119050.0,119040.0,1.11984488]
[1752662277184,1.00806819,119050.0,119040.0,0.756266]
[1752662277491,1.00806819,119050.0,119040.0,1.11984488]
[1752662277883,1.00806819,119050.0,119040.0,0.53832488]
[1752662278084,1.89069021,119050.0,119040.0,0.1679762]
[1752662278386,1.89069021,119050.0,119040.0,0.7494962]
[1752662278893,1.89069021,119050.0,119040.0,0.1679762]
[1752662279190,1.52711133,119050.0,119040.0,0.7494562]
[1752662281786,1.52711133,119050.0,119040.0,0.1679762]
[1752662281992,1.52711133,119050.0,119040.0,0.7494562]
[1752662282388,0.007,119040.0,119030.0,0.2941757]
[1752662282595,1.18778327,119040.0,119030.0,0.8754557]
[1752662282895,1.01980707,119040.0,119030.0,0.8754557]
[1752662283291,1.01980707,119040.0,119030.0,0.2939757]
[1752662283491,1.01980707,119040.0,119030.0,0.8754557]
[1752662283693,1.01980707,119040.0,119030.0,0.2939757]
[1752662283995,0.1749903,119030.0,119020.0,0.0002]
[1752662284189,1.11631082,119030.0,119020.0,0.1680045]
[1752662284390,1.11631082,119030.0,119020.0,0.7494845]
[1752662284892,1.1766712,119030.0,119020.0,0.7494845]
[1752662285101,1.11631082,119030.0,119020.0,0.7494845]
[1752662285594,1.28434283,119030.0,119020.0,0.7494845]
[1752662285984,1.34470321,119030.0,119020.0,0.1680045]
[1752662286191,1.84470321,119030.0,119020.0,0.1680045]
[1752662286391,1.48112433,119030.0,119020.0,0.1680045]
[1752662286591,1.67671291,119030.0,119020.0,0.1680045]
[1752662286802,1.84470241,119030.0,119020.0,0.1680045]
[1752662287193,1.78434203,119030.0,119020.0,0.1680045]
[1752662288803,1.61631002,119030.0,119020.0,0.1680045]
[1752662290200,1.61631002,119030.0,119010.0,0.8809309]
[1752662290201,0.1704643,119020.0,119010.0,0.8809309]
[1752662290399,1.10755099,119020.0,119010.0,0.8807309]
[1752662290996,0.74397211,119020.0,119010.0,0.8807309]
[1752662291201,1.10755099,119020.0,119010.0,0.8757909]
[1752662291401,1.60755099,119020.0,119010.0,0.8337876]
[1752662291806,1.60759099,119020.0,119010.0,0.8347876]
[1752662293806,1.60759099,119020.0,119010.0,0.7507831]
[1752662298611,1.24401211,119020.0,119010.0,0.7507831]
[1752662298812,1.60759099,119020.0,119010.0,0.7507831]
[1752662300005,1.66795137,119020.0,119010.0,0.1742031]
[1752662300211,1.07136781,119020.0,119010.0,1.12183198]
[1752662301815,1.24401211,119020.0,119010.0,1.12183198]
[1752662302715,1.13636819,119020.0,119010.0,1.12183198]
[1752662302909,1.07600781,119020.0,119010.0,1.12183198]
[1752662303116,1.24401211,119020.0,119010.0,1.12183198]
[1752662303315,1.30437249,119020.0,119010.0,1.12183198]
[1752662303510,1.24401211,119020.0,119010.0,1.12183198]